[Event "Titled Tuesday Blitz July 25 Late 2023"]
[White "Vlassov, Nikolai"]
[Black "ExchangeAB"]
[WhiteFideId "4103360"]
[WhiteElo "2565"]
[BlackElo "2450"]
[Result "0-1"]
[Round "8"]
[TimeControl "180+2"]
[Date "2023.07.25"]
[WhiteClock "0:00:00"]
[BlackClock "0:00:31"]
[Board "76"]

1. e4 {[%clk 0:03:00]}  c6 {[%clk 0:03:00]} 2. d4 {[%clk 0:03:00]}  d5 {[%clk 0:03:00]} 3. e5 {[%clk 0:03:01]}  Bf5 {[%clk 0:03:00]} 4. Nc3 {[%clk 0:03:00]}  e6 {[%clk 0:03:00]} 5. g4 {[%clk 0:03:00]}  Bg6 {[%clk 0:02:56]} 6. Nge2 {[%clk 0:03:01]}  Ne7 {[%clk 0:02:54]} 7. Be3 {[%clk 0:03:00]}  h5 {[%clk 0:02:52]} 8. Nf4 {[%clk 0:03:00]}  hxg4 {[%clk 0:02:51]} 9. Nxg6 {[%clk 0:03:00]}  Nxg6 {[%clk 0:02:51]} 10. Qxg4 {[%clk 0:02:59]}  Qh4 {[%clk 0:02:47]} 11. Qg3 {[%clk 0:02:46]}  Qxg3 {[%clk 0:02:44]} 12. fxg3 {[%clk 0:02:46]}  Nd7 {[%clk 0:02:42]} 13. Bd3 {[%clk 0:02:45]}  Ne7 {[%clk 0:02:39]} 14. O-O {[%clk 0:02:44]}  g6 {[%clk 0:02:36]} 15. Ne2 {[%clk 0:02:40]}  Nf5 {[%clk 0:02:36]} 16. Bf2 {[%clk 0:02:31]}  c5 {[%clk 0:02:35]} 17. c3 {[%clk 0:02:30]}  a6 {[%clk 0:02:32]} 18. g4 {[%clk 0:02:27]}  Ne7 {[%clk 0:02:24]} 19. Bg3 {[%clk 0:02:23]}  Nc6 {[%clk 0:02:22]} 20. a3 {[%clk 0:02:11]}  Rc8 {[%clk 0:02:17]} 21. Rf3 {[%clk 0:02:09]}  Nb6 {[%clk 0:02:12]} 22. Raf1 {[%clk 0:02:08]}  Nd8 {[%clk 0:02:12]} 23. b4 {[%clk 0:01:43]}  cxd4 {[%clk 0:02:10]} 24. cxd4 {[%clk 0:01:43]}  Nc4 {[%clk 0:02:09]} 25. Bxc4 {[%clk 0:01:32]}  Rxc4 {[%clk 0:02:07]} 26. Kg2 {[%clk 0:01:23]}  Be7 {[%clk 0:02:04]} 27. Rc3 {[%clk 0:01:07]}  b5 {[%clk 0:02:02]} 28. Rxc4 {[%clk 0:00:49]}  bxc4 {[%clk 0:02:02]} 29. Rb1 {[%clk 0:00:45]}  Kd7 {[%clk 0:01:57]} 30. a4 {[%clk 0:00:40]}  Nc6 {[%clk 0:01:50]} 31. b5 {[%clk 0:00:39]}  axb5 {[%clk 0:01:38]} 32. axb5 {[%clk 0:00:40]}  Na5 {[%clk 0:01:21]} 33. Ra1 {[%clk 0:00:40]}  Bb4 {[%clk 0:01:20]} 34. h4 {[%clk 0:00:34]}  Kc7 {[%clk 0:01:19]} 35. Nf4 {[%clk 0:00:29]}  Kb6 {[%clk 0:01:18]} 36. h5 {[%clk 0:00:24]}  gxh5 {[%clk 0:01:18]} 37. gxh5 {[%clk 0:00:22]}  Kxb5 {[%clk 0:01:18]} 38. Bh4 {[%clk 0:00:20]}  Bd2 {[%clk 0:01:10]} 39. Ne2 {[%clk 0:00:12]}  Rxh5 {[%clk 0:01:08]} 40. Bd8 {[%clk 0:00:12]}  Nb3 {[%clk 0:01:08]} 41. Ra7 {[%clk 0:00:11]}  c3 {[%clk 0:01:02]} 42. Rxf7 {[%clk 0:00:10]}  c2 {[%clk 0:00:49]} 43. Re7 {[%clk 0:00:10]}  Rh6 {[%clk 0:00:45]} 44. Kf3 {[%clk 0:00:09]}  c1=Q {[%clk 0:00:44]} 45. Nxc1 {[%clk 0:00:09]}  Bxc1 {[%clk 0:00:41]} 46. Rb7+ {[%clk 0:00:07]}  Kc4 {[%clk 0:00:42]} 47. Bb6 {[%clk 0:00:06]}  Nxd4+ {[%clk 0:00:40]} 48. Kg4 {[%clk 0:00:06]}  Rg6+ {[%clk 0:00:38]} 49. Kh5 {[%clk 0:00:06]}  Rg5+ {[%clk 0:00:38]} 50. Kh4 {[%clk 0:00:06]}  Rxe5 {[%clk 0:00:38]} 51. Rc7+ {[%clk 0:00:05]}  Kb5 {[%clk 0:00:36]} 52. Bxd4 {[%clk 0:00:05]}  Re4+ {[%clk 0:00:37]} 53. Kh3 {[%clk 0:00:04]}  Rxd4 {[%clk 0:00:37]} 54. Rxc1 {[%clk 0:00:04]}  Rf4 {[%clk 0:00:33]} 55. Kg3 {[%clk 0:00:05]}  Rf7 {[%clk 0:00:33]} 56. Rc8 {[%clk 0:00:04]}  e5 {[%clk 0:00:32]} 57. Kg2 {[%clk 0:00:02]}  e4 {[%clk 0:00:32]} 58. Rc7 {[%clk 0:00:00]}  Rxc7 {[%clk 0:00:31]} 0-1


[Site "https://www.chess.com"]

[Event "Titled Tuesday Blitz July 25 Late 2023"]
[White "Gireman, Ja"]
[Black "SilverCityIndigo"]
[WhiteFideId "5043794"]
[WhiteElo "2563"]
[BlackElo "2448"]
[Result "1-0"]
[Round "8"]
[TimeControl "180+2"]
[Date "2023.07.25"]
[WhiteClock "0:00:44"]
[BlackClock "0:00:00"]
[Board "77"]

1. e4 {[%clk 0:03:00]}  Na6 {[%clk 0:02:58]} 2. d4 {[%clk 0:03:00]}  c6 {[%clk 0:02:58]} 3. c4 {[%clk 0:02:53]}  e5 {[%clk 0:02:59]} 4. dxe5 {[%clk 0:02:52]}  Bb4+ {[%clk 0:02:59]} 5. Bd2 {[%clk 0:02:51]}  Qa5 {[%clk 0:02:57]} 6. f4 {[%clk 0:02:50]}  Nc5 {[%clk 0:02:55]} 7. a3 {[%clk 0:02:35]}  Bxd2+ {[%clk 0:02:49]} 8. Nxd2 {[%clk 0:02:36]}  Qd8 {[%clk 0:02:05]} 9. b4 {[%clk 0:02:32]}  Na6 {[%clk 0:02:05]} 10. Ngf3 {[%clk 0:02:31]}  d6 {[%clk 0:01:56]} 11. exd6 {[%clk 0:02:29]}  Qxd6 {[%clk 0:01:56]} 12. e5 {[%clk 0:02:28]}  Qg6 {[%clk 0:01:56]} 13. c5 {[%clk 0:02:19]}  Nc7 {[%clk 0:01:48]} 14. Nc4 {[%clk 0:02:12]}  Qe4+ {[%clk 0:01:38]} 15. Be2 {[%clk 0:02:11]}  Qxf4 {[%clk 0:01:34]} 16. Nd6+ {[%clk 0:02:12]}  Kf8 {[%clk 0:01:33]} 17. O-O {[%clk 0:02:12]}  Qe3+ {[%clk 0:01:31]} 18. Kh1 {[%clk 0:02:12]}  Be6 {[%clk 0:01:31]} 19. Nxb7 {[%clk 0:02:00]}  Nd5 {[%clk 0:01:29]} 20. Nd4 {[%clk 0:01:49]}  Qxe5 {[%clk 0:01:19]} 21. Nxc6 {[%clk 0:01:49]}  Qc7 {[%clk 0:01:12]} 22. Nd4 {[%clk 0:01:49]}  Re8 {[%clk 0:01:03]} 23. Nd6 {[%clk 0:01:48]}  Ngf6 {[%clk 0:00:52]} 24. Nxe8 {[%clk 0:01:46]}  Kxe8 {[%clk 0:00:53]} 25. Bb5+ {[%clk 0:01:45]}  Kf8 {[%clk 0:00:51]} 26. Nxe6+ {[%clk 0:01:39]}  fxe6 {[%clk 0:00:51]} 27. Qd4 {[%clk 0:01:40]}  h5 {[%clk 0:00:44]} 28. Rae1 {[%clk 0:01:39]}  Kf7 {[%clk 0:00:39]} 29. Bc4 {[%clk 0:01:36]}  Rd8 {[%clk 0:00:39]} 30. Qh4 {[%clk 0:01:30]}  Kg8 {[%clk 0:00:20]} 31. Rxe6 {[%clk 0:01:23]}  Kh7 {[%clk 0:00:16]} 32. Rf5 {[%clk 0:01:08]}  Qf7 {[%clk 0:00:05]} 33. Re1 {[%clk 0:00:53]}  Qg6 {[%clk 0:00:02]} 34. Rg5 {[%clk 0:00:53]}  Qc2 {[%clk 0:00:02]} 35. Rxh5+ {[%clk 0:00:50]}  Kg8 {[%clk 0:00:01]} 36. Rh8+ {[%clk 0:00:48]}  Kf7 {[%clk 0:00:01]} 37. Rxd8 {[%clk 0:00:47]}  Qd2 {[%clk 0:00:01]} 38. Rxd5 {[%clk 0:00:46]}  Nxd5 {[%clk 0:00:01]} 39. h3 {[%clk 0:00:44]}  Kf8 {[%clk 0:00:00]} 40. Bxd5 {[%clk 0:00:44]} 1-0


[Site "https://www.chess.com"]

[Event "Titled Tuesday Blitz July 25 Late 2023"]
[White "Olsson, William"]
[Black "Ambartsumova, Karina"]
[WhiteFideId "1741721"]
[BlackFideId "4166299"]
[WhiteElo "2446"]
[BlackElo "2555"]
[Result "0-1"]
[Round "8"]
[TimeControl "180+2"]
[Date "2023.07.25"]
[WhiteClock "0:00:00"]
[BlackClock "0:00:28"]
[Board "78"]

1. c4 {[%clk 0:03:00]}  d6 {[%clk 0:02:59]} 2. g3 {[%clk 0:03:00]}  g6 {[%clk 0:02:59]} 3. Bg2 {[%clk 0:03:00]}  Bg7 {[%clk 0:02:59]} 4. Nf3 {[%clk 0:02:59]}  Nf6 {[%clk 0:02:57]} 5. O-O {[%clk 0:03:00]}  O-O {[%clk 0:02:55]} 6. Nc3 {[%clk 0:03:00]}  e5 {[%clk 0:02:55]} 7. b4 {[%clk 0:03:00]}  Nc6 {[%clk 0:02:46]} 8. Rb1 {[%clk 0:02:58]}  Be6 {[%clk 0:02:44]} 9. d3 {[%clk 0:02:55]}  Qd7 {[%clk 0:02:44]} 10. Ng5 {[%clk 0:02:53]}  Bf5 {[%clk 0:02:33]} 11. e4 {[%clk 0:02:47]}  Be6 {[%clk 0:02:22]} 12. Nxe6 {[%clk 0:02:44]}  fxe6 {[%clk 0:02:23]} 13. Be3 {[%clk 0:02:38]}  Nd4 {[%clk 0:02:17]} 14. Bxd4 {[%clk 0:02:21]}  exd4 {[%clk 0:02:18]} 15. Ne2 {[%clk 0:02:21]}  e5 {[%clk 0:02:08]} 16. h3 {[%clk 0:02:14]}  Rf7 {[%clk 0:02:00]} 17. f4 {[%clk 0:02:13]}  exf4 {[%clk 0:01:46]} 18. Nxf4 {[%clk 0:01:45]}  c6 {[%clk 0:01:32]} 19. b5 {[%clk 0:01:32]}  Raf8 {[%clk 0:01:23]} 20. bxc6 {[%clk 0:01:31]}  bxc6 {[%clk 0:01:24]} 21. Qa4 {[%clk 0:01:23]}  g5 {[%clk 0:01:21]} 22. Ne2 {[%clk 0:01:21]}  Nh5 {[%clk 0:01:14]} 23. Rxf7 {[%clk 0:01:20]}  Rxf7 {[%clk 0:01:13]} 24. Rb8+ {[%clk 0:00:59]}  Rf8 {[%clk 0:01:07]} 25. Rxf8+ {[%clk 0:00:57]}  Kxf8 {[%clk 0:01:08]} 26. Qd1 {[%clk 0:00:56]}  Be5 {[%clk 0:01:06]} 27. Kh2 {[%clk 0:00:32]}  Qf7 {[%clk 0:00:44]} 28. Qf1 {[%clk 0:00:32]}  Qxf1 {[%clk 0:00:41]} 29. Bxf1 {[%clk 0:00:33]}  Ke7 {[%clk 0:00:41]} 30. Kg2 {[%clk 0:00:32]}  Kd7 {[%clk 0:00:40]} 31. Kf3 {[%clk 0:00:27]}  Nf6 {[%clk 0:00:36]} 32. Nc1 {[%clk 0:00:17]}  Kc7 {[%clk 0:00:36]} 33. Nb3 {[%clk 0:00:17]}  Kb6 {[%clk 0:00:35]} 34. g4 {[%clk 0:00:09]}  Nd7 {[%clk 0:00:29]} 35. Be2 {[%clk 0:00:09]}  Nb8 {[%clk 0:00:29]} 36. Bd1 {[%clk 0:00:09]}  Na6 {[%clk 0:00:29]} 37. Ke2 {[%clk 0:00:07]}  Nb4 {[%clk 0:00:28]} 38. a3 {[%clk 0:00:06]}  Na2 {[%clk 0:00:28]} 39. Kd2 {[%clk 0:00:00]}  Nc3 {[%clk 0:00:28]} 0-1


[Site "https://www.chess.com"]

[Event "Titled Tuesday Blitz July 25 Late 2023"]
[White "Bazilius, Augustinas"]
[Black "Molenda, Marcin"]
[WhiteFideId "12832251"]
[BlackFideId "1173065"]
[WhiteElo "2399"]
[BlackElo "2521"]
[Result "0-1"]
[Round "8"]
[TimeControl "180+2"]
[Date "2023.07.25"]
[WhiteClock "0:02:02"]
[BlackClock "0:02:12"]
[Board "82"]

1. e4 {[%clk 0:03:00]}  c6 {[%clk 0:02:55]} 2. c4 {[%clk 0:03:00]}  d5 {[%clk 0:02:54]} 3. cxd5 {[%clk 0:03:00]}  cxd5 {[%clk 0:02:55]} 4. exd5 {[%clk 0:03:01]}  Nf6 {[%clk 0:02:55]} 5. Nc3 {[%clk 0:03:02]}  Nxd5 {[%clk 0:02:55]} 6. Bc4 {[%clk 0:03:00]}  e6 {[%clk 0:02:53]} 7. Nf3 {[%clk 0:02:59]}  Be7 {[%clk 0:02:53]} 8. O-O {[%clk 0:02:54]}  O-O {[%clk 0:02:53]} 9. d4 {[%clk 0:02:55]}  Nc6 {[%clk 0:02:51]} 10. Nxd5 {[%clk 0:02:49]}  exd5 {[%clk 0:02:50]} 11. Bd3 {[%clk 0:02:50]}  Bg4 {[%clk 0:02:45]} 12. h3 {[%clk 0:02:39]}  Bxf3 {[%clk 0:02:34]} 13. Qxf3 {[%clk 0:02:40]}  Nxd4 {[%clk 0:02:34]} 14. Bxh7+ {[%clk 0:02:40]}  Kxh7 {[%clk 0:02:33]} 15. Qd3+ {[%clk 0:02:40]}  Kg8 {[%clk 0:02:32]} 16. Qxd4 {[%clk 0:02:40]}  Bf6 {[%clk 0:02:33]} 17. Qd3 {[%clk 0:02:38]}  Rc8 {[%clk 0:02:26]} 18. Rd1 {[%clk 0:02:35]}  Re8 {[%clk 0:02:24]} 19. Be3 {[%clk 0:02:29]}  d4 {[%clk 0:02:14]} 20. Bxd4 {[%clk 0:02:18]}  Bxd4 {[%clk 0:02:13]} 21. Qxd4 {[%clk 0:02:19]}  Re1+ {[%clk 0:02:12]} 22. Kh2 {[%clk 0:02:02]}  Qxd4 {[%clk 0:02:12]} 0-1


[Site "https://www.chess.com"]

[Event "Titled Tuesday Blitz July 25 Late 2023"]
[White "Nunez V, Gustavo Eduardo"]
[Black "Fiorito, Joaquin"]
[WhiteFideId "4403690"]
[BlackFideId "180173"]
[WhiteElo "2406"]
[BlackElo "2759"]
[Result "1-0"]
[Round "8"]
[TimeControl "180+2"]
[Date "2023.07.25"]
[WhiteClock "0:00:06"]
[BlackClock "0:00:00"]
[Board "87"]

1. e4 {[%clk 0:02:57]}  c5 {[%clk 0:03:00]} 2. Nc3 {[%clk 0:02:55]}  d6 {[%clk 0:03:00]} 3. g3 {[%clk 0:02:54]}  g6 {[%clk 0:02:58]} 4. Bg2 {[%clk 0:02:54]}  Bg7 {[%clk 0:02:59]} 5. d3 {[%clk 0:02:54]}  e5 {[%clk 0:03:00]} 6. Be3 {[%clk 0:02:54]}  Ne7 {[%clk 0:03:00]} 7. Qd2 {[%clk 0:02:54]}  h5 {[%clk 0:03:00]} 8. h3 {[%clk 0:02:53]}  Nbc6 {[%clk 0:03:00]} 9. Nge2 {[%clk 0:02:50]}  Be6 {[%clk 0:02:58]} 10. Nd5 {[%clk 0:02:46]}  Qd7 {[%clk 0:02:44]} 11. c3 {[%clk 0:02:36]}  f5 {[%clk 0:02:26]} 12. Bg5 {[%clk 0:02:33]}  Rf8 {[%clk 0:02:18]} 13. a3 {[%clk 0:02:21]}  Bxd5 {[%clk 0:01:52]} 14. exd5 {[%clk 0:02:22]}  Na5 {[%clk 0:01:48]} 15. Qc2 {[%clk 0:02:10]}  b6 {[%clk 0:01:37]} 16. b4 {[%clk 0:02:07]}  Nb7 {[%clk 0:01:37]} 17. O-O {[%clk 0:02:01]}  Bf6 {[%clk 0:01:37]} 18. Qd2 {[%clk 0:01:58]}  O-O-O {[%clk 0:01:35]} 19. a4 {[%clk 0:01:51]}  cxb4 {[%clk 0:01:10]} 20. cxb4 {[%clk 0:01:52]}  Kb8 {[%clk 0:01:05]} 21. Rfc1 {[%clk 0:01:42]}  Rc8 {[%clk 0:01:03]} 22. Bxf6 {[%clk 0:01:42]}  Rxf6 {[%clk 0:01:02]} 23. Rxc8+ {[%clk 0:01:38]}  Nxc8 {[%clk 0:01:03]} 24. Qg5 {[%clk 0:01:33]}  Qe7 {[%clk 0:00:48]} 25. Nc3 {[%clk 0:01:32]}  a6 {[%clk 0:00:43]} 26. Re1 {[%clk 0:01:21]}  Nd8 {[%clk 0:00:42]} 27. d4 {[%clk 0:01:08]}  e4 {[%clk 0:00:37]} 28. Bf1 {[%clk 0:01:05]}  Nf7 {[%clk 0:00:33]} 29. Qd2 {[%clk 0:00:59]}  Ka7 {[%clk 0:00:20]} 30. Rc1 {[%clk 0:00:44]}  Nd8 {[%clk 0:00:19]} 31. Nb5+ {[%clk 0:00:43]}  axb5 {[%clk 0:00:18]} 32. Rxc8 {[%clk 0:00:43]}  Rf8 {[%clk 0:00:10]} 33. Qc3 {[%clk 0:00:41]}  Nb7 {[%clk 0:00:09]} 34. Rc7 {[%clk 0:00:41]}  Qd8 {[%clk 0:00:06]} 35. Qc6 {[%clk 0:00:40]}  Qb8 {[%clk 0:00:04]} 36. a5 {[%clk 0:00:35]}  bxa5 {[%clk 0:00:03]} 37. Bxb5 {[%clk 0:00:33]}  Qxc7 {[%clk 0:00:02]} 38. Qxc7 {[%clk 0:00:32]}  axb4 {[%clk 0:00:03]} 39. Bc6 {[%clk 0:00:31]}  Rb8 {[%clk 0:00:03]} 40. Bxb7 {[%clk 0:00:17]}  Rxb7 {[%clk 0:00:04]} 41. Qa5+ {[%clk 0:00:18]}  Kb8 {[%clk 0:00:05]} 42. Qd8+ {[%clk 0:00:18]}  Ka7 {[%clk 0:00:05]} 43. Qxd6 {[%clk 0:00:19]}  b3 {[%clk 0:00:05]} 44. Qa3+ {[%clk 0:00:19]}  Kb8 {[%clk 0:00:06]} 45. Qb2 {[%clk 0:00:20]}  Kc7 {[%clk 0:00:07]} 46. Qc3+ {[%clk 0:00:17]}  Kb8 {[%clk 0:00:08]} 47. Qb2 {[%clk 0:00:17]}  Kc7 {[%clk 0:00:08]} 48. Kf1 {[%clk 0:00:17]}  Kd6 {[%clk 0:00:09]} 49. Ke2 {[%clk 0:00:18]}  Kxd5 {[%clk 0:00:10]} 50. Ke3 {[%clk 0:00:18]}  Kc4 {[%clk 0:00:10]} 51. Qc1+ {[%clk 0:00:18]}  Kb4 {[%clk 0:00:10]} 52. d5 {[%clk 0:00:17]}  g5 {[%clk 0:00:09]} 53. h4 {[%clk 0:00:16]}  f4+ {[%clk 0:00:08]} 54. gxf4 {[%clk 0:00:17]}  gxh4 {[%clk 0:00:09]} 55. Kxe4 {[%clk 0:00:14]}  Ka4 {[%clk 0:00:06]} 56. Qc6+ {[%clk 0:00:13]}  Rb5 {[%clk 0:00:06]} 57. d6 {[%clk 0:00:07]}  b2 {[%clk 0:00:05]} 58. Qc2+ {[%clk 0:00:08]}  Ka3 {[%clk 0:00:06]} 59. d7 {[%clk 0:00:06]}  h3 {[%clk 0:00:06]} 60. d8=Q {[%clk 0:00:06]}  b1=Q {[%clk 0:00:00]} 61. Qa8+ {[%clk 0:00:06]} 1-0


[Site "https://www.chess.com"]

[Event "Titled Tuesday Blitz July 25 Late 2023"]
[White "Davidson, Kevin"]
[Black "Sivakumar, Shaaketh"]
[WhiteFideId "2056810"]
[BlackFideId "30940176"]
[WhiteElo "2392"]
[BlackElo "2561"]
[Result "0-1"]
[Round "8"]
[TimeControl "180+2"]
[Date "2023.07.25"]
[WhiteClock "0:00:00"]
[BlackClock "0:00:05"]
[Board "90"]

1. e4 {[%clk 0:02:01]}  e6 {[%clk 0:03:00]} 2. d4 {[%clk 0:02:01]}  d5 {[%clk 0:03:00]} 3. Nc3 {[%clk 0:01:57]}  Bb4 {[%clk 0:02:59]} 4. exd5 {[%clk 0:01:57]}  exd5 {[%clk 0:02:57]} 5. Bd3 {[%clk 0:01:57]}  Ne7 {[%clk 0:02:52]} 6. Qf3 {[%clk 0:01:57]}  O-O {[%clk 0:02:50]} 7. Ne2 {[%clk 0:01:55]}  Nbc6 {[%clk 0:02:49]} 8. O-O {[%clk 0:01:49]}  a6 {[%clk 0:02:34]} 9. h3 {[%clk 0:01:27]}  Be6 {[%clk 0:02:29]} 10. Be3 {[%clk 0:01:23]}  Qd7 {[%clk 0:02:27]} 11. Ng3 {[%clk 0:01:23]}  Bd6 {[%clk 0:02:25]} 12. a3 {[%clk 0:01:20]}  Rae8 {[%clk 0:02:21]} 13. Nce2 {[%clk 0:01:16]}  Nd8 {[%clk 0:02:20]} 14. Nf4 {[%clk 0:01:14]}  c6 {[%clk 0:02:15]} 15. Rfe1 {[%clk 0:01:05]}  Nf5 {[%clk 0:02:08]} 16. Bxf5 {[%clk 0:00:36]}  Bxf5 {[%clk 0:02:08]} 17. Nxd5 {[%clk 0:00:33]}  Bxg3 {[%clk 0:02:06]} 18. Nb6 {[%clk 0:00:26]}  Qc7 {[%clk 0:01:45]} 19. Qxf5 {[%clk 0:00:16]}  Bxf2+ {[%clk 0:01:40]} 20. Bxf2 {[%clk 0:00:14]}  Qxb6 {[%clk 0:01:41]} 21. Qd7 {[%clk 0:00:08]}  Rxe1+ {[%clk 0:01:36]} 22. Rxe1 {[%clk 0:00:09]}  h6 {[%clk 0:01:07]} 23. b4 {[%clk 0:00:05]}  Kh7 {[%clk 0:00:54]} 24. d5 {[%clk 0:00:05]}  Qb5 {[%clk 0:00:52]} 25. d6 {[%clk 0:00:05]}  Ne6 {[%clk 0:00:50]} 26. Qe7 {[%clk 0:00:02]}  Rg8 {[%clk 0:00:50]} 27. Qxf7 {[%clk 0:00:02]}  Ng5 {[%clk 0:00:48]} 28. Qf4 {[%clk 0:00:01]}  Qd5 {[%clk 0:00:47]} 29. h4 {[%clk 0:00:01]}  Nf7 {[%clk 0:00:45]} 30. Qe4+ {[%clk 0:00:02]}  Qxe4 {[%clk 0:00:44]} 31. Rxe4 {[%clk 0:00:03]}  Nxd6 {[%clk 0:00:45]} 32. Re7 {[%clk 0:00:03]}  Rf8 {[%clk 0:00:45]} 33. Bc5 {[%clk 0:00:02]}  Nf5 {[%clk 0:00:39]} 34. Rxb7 {[%clk 0:00:02]}  Rd8 {[%clk 0:00:38]} 35. g4 {[%clk 0:00:02]}  Nxh4 {[%clk 0:00:37]} 36. Kf2 {[%clk 0:00:02]}  Ng6 {[%clk 0:00:27]} 37. c3 {[%clk 0:00:03]}  Ne5 {[%clk 0:00:19]} 38. Bd4 {[%clk 0:00:03]}  Nxg4+ {[%clk 0:00:18]} 39. Kg3 {[%clk 0:00:03]}  h5 {[%clk 0:00:15]} 40. Rxg7+ {[%clk 0:00:02]}  Kh6 {[%clk 0:00:15]} 41. Rc7 {[%clk 0:00:02]}  Kg5 {[%clk 0:00:15]} 42. Rxc6 {[%clk 0:00:02]}  h4+ {[%clk 0:00:15]} 43. Kh3 {[%clk 0:00:01]}  Rf8 {[%clk 0:00:12]} 44. Rc5+ {[%clk 0:00:02]}  Kf4 {[%clk 0:00:11]} 45. Kg2 {[%clk 0:00:01]}  Ke4 {[%clk 0:00:08]} 46. Kh3 {[%clk 0:00:01]}  Kf4 {[%clk 0:00:08]} 47. Kxh4 {[%clk 0:00:01]}  Rf7 {[%clk 0:00:07]} 48. Kh5 {[%clk 0:00:02]}  Rh7+ {[%clk 0:00:07]} 49. Kg6 {[%clk 0:00:02]}  Rh6+ {[%clk 0:00:08]} 50. Kg7 {[%clk 0:00:01]}  Rh3 {[%clk 0:00:08]} 51. Kf7 {[%clk 0:00:01]}  Rf3 {[%clk 0:00:08]} 52. Ke7 {[%clk 0:00:01]}  Ke4 {[%clk 0:00:09]} 53. Kd6 {[%clk 0:00:02]}  Nf2 {[%clk 0:00:09]} 54. Kc6 {[%clk 0:00:02]}  Nd3 {[%clk 0:00:09]} 55. Kb6 {[%clk 0:00:02]}  Nxc5 {[%clk 0:00:09]} 56. bxc5 {[%clk 0:00:03]}  Kd5 {[%clk 0:00:06]} 57. Kxa6 {[%clk 0:00:02]}  Rf7 {[%clk 0:00:06]} 58. Kb6 {[%clk 0:00:01]}  Rh7 {[%clk 0:00:07]} 59. a4 {[%clk 0:00:01]}  Rh6+ {[%clk 0:00:06]} 60. Kb5 {[%clk 0:00:01]}  Rh7 {[%clk 0:00:05]} 61. a5 {[%clk 0:00:02]}  Rb7+ {[%clk 0:00:05]} 62. Ka4 {[%clk 0:00:02]}  Kc4 {[%clk 0:00:06]} 63. a6 {[%clk 0:00:02]}  Rb1 {[%clk 0:00:06]} 64. Ka5 {[%clk 0:00:00]}  Kd5 {[%clk 0:00:05]} 0-1


[Site "https://www.chess.com"]

[Event "Titled Tuesday Blitz July 25 Late 2023"]
[White "Santos Flores, Alberto"]
[Black "DampFalcon"]
[WhiteFideId "3601234"]
[WhiteElo "2516"]
[BlackElo "2371"]
[Result "0-1"]
[Round "8"]
[TimeControl "180+2"]
[Date "2023.07.25"]
[WhiteClock "0:01:25"]
[BlackClock "0:00:21"]
[Board "93"]

1. e4 {[%clk 0:03:00]}  c5 {[%clk 0:02:59]} 2. Nf3 {[%clk 0:02:59]}  g6 {[%clk 0:02:59]} 3. d4 {[%clk 0:02:59]}  cxd4 {[%clk 0:03:00]} 4. Nxd4 {[%clk 0:02:59]}  Nc6 {[%clk 0:03:00]} 5. Nc3 {[%clk 0:02:59]}  Bg7 {[%clk 0:03:00]} 6. Be3 {[%clk 0:03:00]}  Nf6 {[%clk 0:03:00]} 7. Bc4 {[%clk 0:03:00]}  Qa5 {[%clk 0:03:00]} 8. O-O {[%clk 0:02:59]}  d6 {[%clk 0:03:00]} 9. Nb3 {[%clk 0:02:53]}  Qd8 {[%clk 0:02:54]} 10. Be2 {[%clk 0:02:51]}  O-O {[%clk 0:02:53]} 11. f4 {[%clk 0:02:52]}  a6 {[%clk 0:02:42]} 12. Bf3 {[%clk 0:02:40]}  Be6 {[%clk 0:02:27]} 13. Nd5 {[%clk 0:02:35]}  Rc8 {[%clk 0:01:56]} 14. Qd2 {[%clk 0:02:26]}  Nb8 {[%clk 0:01:33]} 15. Rae1 {[%clk 0:02:14]}  Nbd7 {[%clk 0:01:29]} 16. g4 {[%clk 0:02:10]}  Bxg4 {[%clk 0:01:18]} 17. Bg2 {[%clk 0:02:02]}  Nxd5 {[%clk 0:01:15]} 18. exd5 {[%clk 0:02:01]}  Bxb2 {[%clk 0:01:10]} 19. Bd4 {[%clk 0:01:58]}  Bxd4+ {[%clk 0:01:08]} 20. Qxd4 {[%clk 0:01:59]}  Bf5 {[%clk 0:00:58]} 21. c3 {[%clk 0:01:56]}  Nf6 {[%clk 0:00:51]} 22. Rf2 {[%clk 0:01:52]}  Re8 {[%clk 0:00:45]} 23. Rfe2 {[%clk 0:01:52]}  Qc7 {[%clk 0:00:45]} 24. Qxf6 {[%clk 0:01:46]}  exf6 {[%clk 0:00:42]} 25. Rxe8+ {[%clk 0:01:47]}  Rxe8 {[%clk 0:00:42]} 26. Rxe8+ {[%clk 0:01:48]}  Kg7 {[%clk 0:00:43]} 27. Nd4 {[%clk 0:01:45]}  Qxc3 {[%clk 0:00:36]} 28. Nxf5+ {[%clk 0:01:44]}  gxf5 {[%clk 0:00:37]} 29. h3 {[%clk 0:01:35]}  Qd4+ {[%clk 0:00:35]} 30. Kh1 {[%clk 0:01:35]}  Qxf4 {[%clk 0:00:35]} 31. Re7 {[%clk 0:01:35]}  Qb4 {[%clk 0:00:25]} 32. Kh2 {[%clk 0:01:33]}  Qb2 {[%clk 0:00:23]} 33. a4 {[%clk 0:01:32]}  f4 {[%clk 0:00:23]} 34. Kg1 {[%clk 0:01:32]}  b5 {[%clk 0:00:22]} 35. axb5 {[%clk 0:01:31]}  axb5 {[%clk 0:00:23]} 36. Re4 {[%clk 0:01:31]}  Qc1+ {[%clk 0:00:21]} 37. Kf2 {[%clk 0:01:31]}  Qd2+ {[%clk 0:00:21]} 38. Kf3 {[%clk 0:01:30]}  b4 {[%clk 0:00:21]} 39. Rxf4 {[%clk 0:01:25]}  b3 {[%clk 0:00:21]} 0-1


[Site "https://www.chess.com"]